[Event "British Rapidplay Championship 2023"]
[Site "Mercure Bradford, Bankfield Hotel"]
[Date "2023.04.16"]
[Round "10.18"]
[White "Mata, Andrew B"]
[Black "Shaw, Peter"]
[Result "0-1"]
[TimeControl "15 minutes plus 10 seconds per move"]
[WhiteElo "1659"]
[BlackElo "2231"]

1. d4 {[%clk 00:15:17]} {[%emt 00:00:02]} f5 {[%clk 00:15:19]} {[%emt
00:00:01]} 2. c4 {[%clk 00:15:09]} {[%emt 00:00:19]} e6 {[%clk 00:15:27]}
{[%emt 00:00:02]} 3. Nc3 {[%clk 00:15:16]} {[%emt 00:00:03]} Nf6 {[%clk
00:15:35]} {[%emt 00:00:02]} 4. g3 {[%clk 00:15:22]} {[%emt 00:00:04]} Be7
{[%clk 00:15:34]} {[%emt 00:00:11]} 5. Bg2 {[%clk 00:15:29]} {[%emt 00:00:03]}
O-O {[%clk 00:15:42]} {[%emt 00:00:03]} 6. Nh3 {[%clk 00:12:57]} {[%emt
00:02:42]} d6 {[%clk 00:14:54]} {[%emt 00:00:58]} 7. O-O {[%clk 00:12:18]}
{[%emt 00:00:49]} c6 {[%clk 00:14:36]} {[%emt 00:00:27]} 8. Qb3 {[%clk
00:11:12]} {[%emt 00:01:16]} Kh8 {[%clk 00:14:00]} {[%emt 00:00:46]} 9. Bd2
{[%clk 00:10:06]} {[%emt 00:01:16]} e5 {[%clk 00:13:48]} {[%emt 00:00:22]} 10.
d5 {[%clk 00:09:16]} {[%emt 00:01:00]} c5 {[%clk 00:13:07]} {[%emt 00:00:52]}
11. Ng5 {[%clk 00:08:18]} {[%emt 00:01:06]} Qc7 {[%clk 00:06:33]} {[%emt
00:06:45]} 12. Ne6 {[%clk 00:06:57]} {[%emt 00:01:30]} Bxe6 {[%clk 00:06:41]}
{[%emt 00:00:02]} 13. dxe6 {[%clk 00:07:04]} {[%emt 00:00:02]} Nc6 {[%clk
00:06:46]} {[%emt 00:00:05]} 14. Be3 {[%clk 00:03:31]} {[%emt 00:03:42]} Rab8
{[%clk 00:04:33]} {[%emt 00:02:24]} 15. Nd5 {[%clk 00:03:33]} {[%emt 00:00:08]}
Qc8 {[%emt 00:01:59]} 16. Nxe7 {[%clk 00:02:26]} Nxe7 {[%clk 00:04:08]} {[%emt
00:00:02]} 17. Bd5 {[%clk 00:02:23]} {[%emt 00:00:14]} b5 {[%clk 00:02:27]}
{[%emt 00:01:50]} 18. Qd3 {[%clk 00:00:51]} {[%emt 00:01:42]} bxc4 {[%clk
00:02:00]} {[%emt 00:00:37]} 19. Bxc4 {[%clk 00:00:59]} {[%emt 00:00:02]} d5
{[%clk 00:02:02]} {[%emt 00:00:08]} 20. Ba6 {[%clk 00:01:08]} {[%emt 00:00:01]}
c4 {[%clk 00:01:35]} {[%emt 00:00:37]} 21. Qa3 {[%clk 00:01:08]} {[%emt
00:00:10]} Qxe6 {[%clk 00:01:35]} {[%emt 00:00:09]} 22. Bc5 {[%clk 00:01:12]}
{[%emt 00:00:06]} Rfe8 {[%clk 00:01:29]} {[%emt 00:00:16]} 23. Bxa7 {[%clk
00:01:00]} {[%emt 00:00:21]} Ra8 {[%clk 00:01:24]} {[%emt 00:00:16]} 24. Bb7
{[%clk 00:01:08]} {[%emt 00:00:02]} Rad8 {[%clk 00:01:14]} {[%emt 00:00:20]} 25.
Bc5 {[%clk 00:01:00]} {[%emt 00:00:18]} Ne4 {[%clk 00:00:58]} {[%emt 00:00:26]}
26. Bxe7 {[%clk 00:00:42]} {[%emt 00:00:27]} Rxe7 {[%clk 00:00:55]} {[%emt
00:00:13]} 27. Bc6 {[%clk 00:00:47]} {[%emt 00:00:05]} Rc7 {[%clk 00:00:43]}
{[%emt 00:00:23]} 28. Bb5 {[%clk 00:00:40]} {[%emt 00:00:16]} h6 {[%clk
00:00:45]} {[%emt 00:00:08]} 29. Rfd1 {[%clk 00:00:47]} {[%emt 00:00:03]} Qb6
{[%clk 00:00:48]} {[%emt 00:00:06]} 30. Qa6 {[%clk 00:00:49]} {[%emt 00:00:09]}
Qxf2+ {[%clk 00:00:50]} {[%emt 00:00:09]} 31. Kh1 {[%clk 00:00:56]} {[%emt
00:00:03]} Qxe2 {[%clk 00:00:52]} {[%emt 00:00:08]} 32. Kg1 {[%clk 00:00:22]}
{[%emt 00:00:44]} Ng5 {[%clk 00:00:44]} {[%emt 00:00:18]} 33. Re1 {[%clk
00:00:24]} {[%emt 00:00:08]} Nf3+ {[%clk 00:00:51]} {[%emt 00:00:03]} 0-1

[Event "British Rapidplay Championship 2023"]
[Site "Mercure Bradford, Bankfield Hotel"]
[Date "2023.04.16"]
[Round "10.19"]
[White "Buckley, Colm"]
[Black "Ackley, Peter JE"]
[Result "1/2-1/2"]
[TimeControl "15 minutes plus 10 seconds per move"]
[WhiteElo "1870"]
[BlackElo "2151"]

1. d4 {[%clk 00:15:19]} d6 {[%clk 00:15:19]} {[%emt 00:00:01]} 2. c4 {[%clk
00:15:14]} {[%emt 00:00:15]} e5 {[%clk 00:15:25]} {[%emt 00:00:04]} 3. e3
{[%clk 00:14:36]} {[%emt 00:00:47]} Nd7 {[%clk 00:15:31]} {[%emt 00:00:05]} 4.
Nc3 {[%clk 00:14:39]} {[%emt 00:00:07]} Ngf6 {[%clk 00:15:39]} {[%emt
00:00:02]} 5. Nf3 {[%clk 00:14:24]} {[%emt 00:00:25]} g6 {[%clk 00:15:46]}
{[%emt 00:00:02]} 6. dxe5 {[%clk 00:14:20]} {[%emt 00:00:15]} dxe5 {[%clk
00:15:54]} {[%emt 00:00:02]} 7. b3 {[%clk 00:14:05]} {[%emt 00:00:25]} Bg7
{[%clk 00:15:51]} {[%emt 00:00:13]} 8. Bb2 {[%clk 00:14:08]} {[%emt 00:00:07]}
O-O {[%clk 00:15:30]} {[%emt 00:00:31]} 9. Be2 {[%clk 00:13:51]} {[%emt
00:00:27]} a6 {[%clk 00:14:52]} {[%emt 00:00:48]} 10. O-O {[%clk 00:13:48]}
{[%emt 00:00:13]} e4 {[%clk 00:15:00]} {[%emt 00:00:03]} 11. Nd2 {[%clk
00:12:53]} {[%emt 00:01:04]} Re8 {[%clk 00:14:44]} {[%emt 00:00:26]} 12. Qc2
{[%clk 00:12:41]} {[%emt 00:00:22]} Qe7 {[%clk 00:14:48]} {[%emt 00:00:06]} 13.
a3 {[%clk 00:11:21]} {[%emt 00:01:31]} h5 {[%clk 00:14:46]} {[%emt 00:00:11]}
14. Rfd1 {[%clk 00:10:42]} {[%emt 00:00:49]} c6 {[%clk 00:14:13]} {[%emt
00:00:43]} 15. b4 {[%clk 00:10:05]} {[%emt 00:00:47]} b5 {[%clk 00:14:11]}
{[%emt 00:00:11]} 16. cxb5 {[%clk 00:09:12]} {[%emt 00:01:04]} cxb5 {[%clk
00:14:15]} {[%emt 00:00:06]} 17. Nb3 {[%clk 00:08:55]} {[%emt 00:00:27]} Bb7
{[%clk 00:13:36]} {[%emt 00:00:49]} 18. Na5 {[%clk 00:08:28]} {[%emt 00:00:37]}
Nb6 {[%clk 00:13:43]} {[%emt 00:00:03]} 19. Qb3 {[%clk 00:07:53]} {[%emt
00:00:44]} Rac8 {[%clk 00:12:56]} {[%emt 00:00:58]} 20. a4 {[%clk 00:07:19]}
{[%emt 00:00:44]} bxa4 {[%clk 00:10:52]} {[%emt 00:02:14]} 21. Nxa4 {[%clk
00:07:17]} {[%emt 00:00:12]} Nxa4 {[%clk 00:09:50]} {[%emt 00:01:12]} 22. Qxa4
{[%clk 00:06:55]} {[%emt 00:00:31]} Rb8 {[%clk 00:09:10]} {[%emt 00:00:51]} 23.
Nxb7 {[%clk 00:05:51]} {[%emt 00:01:14]} Qxb7 {[%clk 00:08:58]} {[%emt
00:00:22]} 24. Bxf6 {[%clk 00:04:35]} {[%emt 00:01:26]} Bxf6 {[%clk 00:08:59]}
{[%emt 00:00:10]} 25. Rab1 {[%clk 00:04:26]} {[%emt 00:00:18]} Re6 {[%clk
00:06:56]} {[%emt 00:02:13]} 26. Bf1 {[%emt 00:00:18]} 1/2-1/2

[Event "British Rapidplay Championship 2023"]
[Site "Mercure Bradford, Bankfield Hotel"]
[Date "2023.04.16"]
[Round "10.20"]
[White "Quilter, Thomas A"]
[Black "Gopakumar, Siddharth"]
[Result "1-0"]
[TimeControl "15 minutes plus 10 seconds per move"]
[WhiteElo "2134"]
[BlackElo "1735"]

1. Nf3 {[%emt 00:00:07]} d5 {[%clk 00:15:16]} 2. d3 {[%clk 00:15:23]} {[%emt
00:00:04]} c5 {[%clk 00:15:21]} {[%emt 00:00:05]} 3. e4 {[%clk 00:15:20]}
{[%emt 00:00:13]} dxe4 {[%clk 00:15:27]} {[%emt 00:00:04]} 4. dxe4 {[%clk
00:15:29]} {[%emt 00:00:02]} Qxd1+ {[%clk 00:15:33]} {[%emt 00:00:03]} 5. Kxd1
{[%clk 00:15:37]} {[%emt 00:00:01]} Bg4 {[%clk 00:15:23]} {[%emt 00:00:20]} 6.
Be3 {[%clk 00:15:25]} {[%emt 00:00:22]} Bxf3+ {[%clk 00:15:02]} {[%emt
00:00:32]} 7. gxf3 {[%clk 00:15:34]} {[%emt 00:00:01]} e5 {[%clk 00:15:11]} 8.
c3 {[%clk 00:15:25]} {[%emt 00:00:19]} Nd7 {[%clk 00:14:56]} {[%emt 00:00:25]}
9. Bc4 {[%clk 00:15:09]} {[%emt 00:00:26]} g6 {[%clk 00:14:32]} {[%emt
00:00:34]} 10. Nd2 {[%clk 00:14:43]} {[%emt 00:00:35]} f5 {[%clk 00:14:15]}
{[%emt 00:00:27]} 11. f4 {[%clk 00:14:38]} {[%emt 00:00:15]} Bh6 {[%clk
00:14:12]} {[%emt 00:00:13]} 12. f3 {[%clk 00:13:35]} {[%emt 00:01:14]} Ne7
{[%clk 00:10:47]} {[%emt 00:03:35]} 13. Re1 {[%clk 00:10:22]} {[%emt 00:03:23]}
exf4 {[%clk 00:08:21]} {[%emt 00:02:36]} 14. Bf2 {[%clk 00:10:27]} {[%emt
00:00:05]} O-O-O {[%clk 00:08:21]} {[%emt 00:00:10]} 15. Be6 {[%clk 00:09:59]}
{[%emt 00:00:38]} b6 {[%clk 00:07:55]} {[%emt 00:00:36]} 16. Kc2 {[%clk
00:06:13]} {[%emt 00:03:55]} Kc7 {[%clk 00:07:52]} {[%emt 00:00:13]} 17. exf5
{[%clk 00:05:31]} {[%emt 00:00:53]} Nxf5 {[%clk 00:07:58]} {[%emt 00:00:04]} 18.
Bxf5 {[%clk 00:05:37]} {[%emt 00:00:04]} gxf5 {[%clk 00:08:07]} 19. Re6 {[%clk
00:05:40]} {[%emt 00:00:06]} Bg5 {[%clk 00:08:16]} {[%emt 00:00:01]} 20. Nc4
{[%clk 00:04:37]} {[%emt 00:01:13]} Rhe8 {[%clk 00:07:45]} {[%emt 00:00:42]} 21.
Rae1 {[%clk 00:04:45]} {[%emt 00:00:01]} Rxe6 {[%clk 00:07:43]} {[%emt
00:00:13]} 22. Rxe6 {[%clk 00:04:52]} {[%emt 00:00:02]} Nf8 {[%clk 00:07:49]}
{[%emt 00:00:04]} 23. Re5 {[%clk 00:04:44]} {[%emt 00:00:18]} Rd7 {[%clk
00:05:47]} {[%emt 00:02:13]} 24. Rxf5 {[%clk 00:04:44]} {[%emt 00:00:10]} Ne6
{[%clk 00:05:38]} {[%emt 00:00:19]} 25. Ne5 {[%clk 00:03:34]} {[%emt 00:01:20]}
Rg7 {[%clk 00:05:45]} {[%emt 00:00:02]} 26. Kd3 {[%clk 00:03:07]} {[%emt
00:00:37]} Kd6 {[%clk 00:05:20]} {[%emt 00:00:35]} 27. Nf7+ {[%clk 00:03:07]}
{[%emt 00:00:11]} Kc6 {[%clk 00:04:42]} {[%emt 00:00:48]} 28. Ke4 {[%clk
00:02:29]} {[%emt 00:00:47]} Be7 {[%clk 00:04:30]} {[%emt 00:00:23]} 29. Ne5+
{[%clk 00:01:56]} {[%emt 00:00:43]} Kd6 {[%clk 00:03:46]} {[%emt 00:00:54]} 30.
Nc4+ {[%clk 00:01:47]} {[%emt 00:00:19]} Kc6 {[%clk 00:03:21]} {[%emt
00:00:35]} 31. Re5 {[%clk 00:01:51]} {[%emt 00:00:06]} Kd7 {[%clk 00:02:35]}
{[%emt 00:00:56]} 32. Rd5+ {[%clk 00:01:58]} {[%emt 00:00:03]} Kc7 {[%clk
00:02:03]} {[%emt 00:00:42]} 33. Kf5 {[%clk 00:02:00]} {[%emt 00:00:07]} Rg6
{[%clk 00:01:34]} {[%emt 00:00:40]} 34. Ne5 {[%clk 00:01:49]} {[%emt 00:00:21]}
Rf6+ {[%clk 00:01:38]} {[%emt 00:00:05]} 35. Kg4 {[%clk 00:01:51]} {[%emt
00:00:08]} Bd6 {[%clk 00:01:18]} {[%emt 00:00:31]} 36. Bh4 {[%clk 00:01:52]}
{[%emt 00:00:08]} Rf8 {[%clk 00:01:11]} {[%emt 00:00:17]} 37. Nc4 {[%clk
00:01:47]} {[%emt 00:00:15]} Rg8+ {[%clk 00:00:36]} {[%emt 00:00:46]} 38. Kf5
{[%clk 00:01:44]} {[%emt 00:00:13]} Ng7+ {[%clk 00:00:38]} {[%emt 00:00:09]} 39.
Kf6 {[%clk 00:01:28]} {[%emt 00:00:24]} Ne8+ {[%clk 00:00:33]} {[%emt
00:00:15]} 40. Kf5 {[%clk 00:01:04]} {[%emt 00:00:35]} Rf8+ {[%clk 00:00:29]}
{[%emt 00:00:14]} 41. Ke4 {[%clk 00:00:38]} {[%emt 00:00:35]} b5 {[%clk
00:00:29]} {[%emt 00:00:10]} 42. Ne5 {[%clk 00:00:28]} {[%emt 00:00:21]} Nf6+
{[%clk 00:00:19]} {[%emt 00:00:20]} 43. Bxf6 {[%clk 00:00:34]} {[%emt
00:00:03]} Rxf6 {[%clk 00:00:28]} {[%emt 00:00:01]} 44. Ng4 {[%clk 00:00:12]}
{[%emt 00:00:32]} Re6+ {[%clk 00:00:31]} {[%emt 00:00:07]} 45. Kd3 {[%clk
00:00:21]} Kc6 {[%clk 00:00:31]} {[%emt 00:00:11]} 46. Rh5 {[%clk 00:00:27]}
{[%emt 00:00:04]} Re7 {[%clk 00:00:23]} {[%emt 00:00:18]} 47. Kd2 {[%clk
00:00:21]} {[%emt 00:00:15]} a5 {[%clk 00:00:31]} {[%emt 00:00:03]} 48. Nf6
{[%clk 00:00:28]} {[%emt 00:00:03]} Rg7 {[%clk 00:00:14]} {[%emt 00:00:27]} 49.
Ne4 {[%clk 00:00:19]} {[%emt 00:00:19]} c4 {[%clk 00:00:11]} {[%emt 00:00:14]}
50. Rh6 {[%clk 00:00:21]} {[%emt 00:00:07]} Rd7 {[%clk 00:00:18]} {[%emt
00:00:03]} 51. Ke2 {[%clk 00:00:16]} {[%emt 00:00:16]} Kc7 {[%clk 00:00:15]}
{[%emt 00:00:13]} 52. Nxd6 {[%clk 00:00:19]} {[%emt 00:00:05]} Rxd6 {[%clk
00:00:24]} {[%emt 00:00:02]} 53. Rxh7+ {[%clk 00:00:28]} {[%emt 00:00:01]} Kc6
{[%clk 00:00:33]} 54. h4 {[%clk 00:00:31]} {[%emt 00:00:07]} b4 {[%clk
00:00:30]} {[%emt 00:00:13]} 55. h5 {[%clk 00:00:36]} {[%emt 00:00:04]} bxc3
{[%clk 00:00:38]} {[%emt 00:00:02]} 56. bxc3 {[%clk 00:00:45]} Kb5 {[%clk
00:00:32]} {[%emt 00:00:17]} 57. Re7 {[%clk 00:00:39]} {[%emt 00:00:16]} Rd5
{[%clk 00:00:14]} {[%emt 00:00:29]} 58. h6 {[%clk 00:00:43]} {[%emt 00:00:05]}
Rh5 {[%clk 00:00:23]} {[%emt 00:00:01]} 59. h7 {[%clk 00:00:49]} {[%emt
00:00:04]} Kc6 {[%clk 00:00:21]} {[%emt 00:00:12]} 60. Rf7 {[%clk 00:00:23]}
{[%emt 00:00:36]} Rh2+ {[%clk 00:00:28]} {[%emt 00:00:03]} 61. Kf1 {[%clk
00:00:23]} {[%emt 00:00:09]} Kd5 {[%clk 00:00:36]} {[%emt 00:00:02]} 62. Kg1
{[%clk 00:00:25]} {[%emt 00:00:09]} Rh6 {[%clk 00:00:41]} {[%emt 00:00:04]} 63.
Ra7 {[%clk 00:00:24]} {[%emt 00:00:11]} Kc5 {[%clk 00:00:31]} {[%emt 00:00:21]}
64. a4 {[%clk 00:00:19]} {[%emt 00:00:15]} Kb6 {[%clk 00:00:34]} {[%emt
00:00:07]} 65. Rf7 {[%clk 00:00:26]} {[%emt 00:00:02]} Kc5 {[%clk 00:00:35]}
{[%emt 00:00:08]} 66. Rf5+ {[%clk 00:00:33]} {[%emt 00:00:04]} Kd6 {[%clk
00:00:36]} {[%emt 00:00:10]} 67. Rf6+ {[%clk 00:00:40]} {[%emt 00:00:03]} Rxf6
{[%clk 00:00:43]} {[%emt 00:00:03]} 68. h8=Q {[%clk 00:00:47]} {[%emt
00:00:02]} 1-0

[Event "British Rapidplay Championship 2023"]
[Site "Mercure Bradford, Bankfield Hotel"]
[Date "2023.04.16"]
[Round "10.21"]
[White "Smith, Andrew P"]
[Black "Donahue, Randolph E"]
[Result "1-0"]
[TimeControl "15 minutes plus 10 seconds per move"]
[WhiteElo "2125"]
[BlackElo "1780"]

1. e4 {[%clk 00:15:18]} {[%emt 00:00:01]} e5 {[%clk 00:15:19]} {[%emt
00:00:02]} 2. d4 {[%clk 00:15:15]} {[%emt 00:00:12]} exd4 {[%clk 00:15:22]}
{[%emt 00:00:07]} 3. Qxd4 {[%clk 00:15:14]} {[%emt 00:00:11]} Nc6 {[%clk
00:15:00]} {[%emt 00:00:33]} 4. Qe3 {[%clk 00:15:21]} {[%emt 00:00:01]} d6
{[%clk 00:13:54]} {[%emt 00:01:17]} 5. Nc3 {[%clk 00:15:24]} {[%emt 00:00:08]}
Nf6 {[%clk 00:14:02]} {[%emt 00:00:02]} 6. Bd2 {[%clk 00:15:12]} {[%emt
00:00:21]} Be6 {[%clk 00:13:37]} {[%emt 00:00:36]} 7. O-O-O {[%clk 00:14:59]}
{[%emt 00:00:22]} Be7 {[%clk 00:12:26]} {[%emt 00:01:21]} 8. Nge2 {[%clk
00:13:59]} {[%emt 00:01:09]} a5 {[%clk 00:11:12]} {[%emt 00:01:25]} 9. Nf4
{[%clk 00:13:11]} {[%emt 00:00:58]} O-O {[%clk 00:10:35]} {[%emt 00:00:47]} 10.
Nxe6 {[%clk 00:10:59]} {[%emt 00:02:23]} fxe6 {[%clk 00:10:41]} {[%emt
00:00:03]} 11. Qh3 {[%clk 00:10:59]} {[%emt 00:00:10]} e5 {[%clk 00:09:51]}
{[%emt 00:01:00]} 12. Bc4+ {[%clk 00:10:38]} {[%emt 00:00:30]} Kh8 {[%clk
00:10:01]} {[%emt 00:00:02]} 13. Be3 {[%clk 00:09:13]} {[%emt 00:01:34]} a4
{[%clk 00:09:21]} {[%emt 00:00:51]} 14. a3 {[%clk 00:09:18]} {[%emt 00:00:04]}
Na5 {[%clk 00:08:53]} {[%emt 00:00:39]} 15. Be6 {[%clk 00:09:21]} {[%emt
00:00:06]} Qe8 {[%clk 00:07:26]} {[%emt 00:01:37]} 16. g4 {[%clk 00:09:10]}
{[%emt 00:00:21]} b5 {[%clk 00:06:58]} {[%emt 00:00:38]} 17. g5 {[%clk
00:08:58]} {[%emt 00:00:22]} Qh5 {[%clk 00:07:05]} {[%emt 00:00:03]} 18. gxf6
{[%clk 00:08:37]} {[%emt 00:00:31]} Qxh3 {[%clk 00:07:11]} {[%emt 00:00:03]} 19.
fxg7+ {[%clk 00:08:35]} {[%emt 00:00:12]} Kxg7 {[%clk 00:07:18]} {[%emt
00:00:04]} 20. Bxh3 {[%clk 00:08:30]} {[%emt 00:00:14]} b4 {[%clk 00:06:32]}
{[%emt 00:00:57]} 21. Nd5 {[%clk 00:07:45]} {[%emt 00:00:55]} bxa3 {[%clk
00:06:31]} {[%emt 00:00:11]} 22. Nxe7 {[%clk 00:05:43]} {[%emt 00:02:12]} a2
{[%clk 00:06:34]} {[%emt 00:00:08]} 23. Kd2 {[%clk 00:05:46]} {[%emt 00:00:05]}
Nc4+ {[%clk 00:06:31]} {[%emt 00:00:14]} 24. Kc3 {[%clk 00:05:53]} {[%emt
00:00:03]} Nxe3 {[%clk 00:06:10]} {[%emt 00:00:31]} 25. fxe3 {[%clk 00:05:50]}
{[%emt 00:00:13]} Kh8 {[%clk 00:04:06]} {[%emt 00:02:14]} 26. Nf5 {[%clk
00:05:34]} {[%emt 00:00:26]} Rfb8 {[%clk 00:04:12]} {[%emt 00:00:04]} 27. Ra1
{[%clk 00:05:23]} {[%emt 00:00:21]} a3 {[%clk 00:03:52]} {[%emt 00:00:30]} 28.
b3 {[%clk 00:05:18]} {[%emt 00:00:15]} Rb6 {[%clk 00:03:21]} {[%emt 00:00:42]}
29. Rxa2 {[%clk 00:05:19]} {[%emt 00:00:09]} c5 {[%clk 00:03:29]} {[%emt
00:00:02]} 30. Rd1 {[%clk 00:05:09]} {[%emt 00:00:19]} c4 {[%clk 00:03:25]}
{[%emt 00:00:15]} 31. bxc4 {[%clk 00:04:20]} {[%emt 00:00:58]} Raa6 {[%clk
00:02:50]} {[%emt 00:00:45]} 32. Rg1 {[%clk 00:04:12]} {[%emt 00:00:18]} Rb8
{[%clk 00:02:57]} {[%emt 00:00:04]} 33. Nh6 {[%clk 00:04:10]} {[%emt 00:00:11]}
Ra7 {[%clk 00:02:24]} {[%emt 00:00:43]} 34. Be6 {[%clk 00:04:12]} {[%emt
00:00:08]} Rf8 {[%clk 00:02:04]} {[%emt 00:00:30]} 35. Rg8+ {[%clk 00:03:38]}
{[%emt 00:00:44]} Rxg8 {[%clk 00:02:13]} {[%emt 00:00:02]} 36. Nxg8 {[%clk
00:03:42]} {[%emt 00:00:05]} Kg7 {[%clk 00:02:18]} {[%emt 00:00:06]} 37. Kb3
{[%clk 00:03:40]} {[%emt 00:00:11]} Ra8 {[%clk 00:02:18]} {[%emt 00:00:10]} 38.
Rxa3 {[%clk 00:03:39]} {[%emt 00:00:11]} Rxa3+ {[%clk 00:02:22]} {[%emt
00:00:07]} 39. Kxa3 {[%clk 00:03:47]} {[%emt 00:00:02]} h5 {[%clk 00:02:22]}
{[%emt 00:00:10]} 40. Bd5 {[%clk 00:03:40]} {[%emt 00:00:15]} h4 {[%clk
00:02:29]} {[%emt 00:00:04]} 41. h3 {[%clk 00:03:29]} {[%emt 00:00:21]} Kf8
{[%clk 00:02:16]} {[%emt 00:00:23]} 42. Kb4 {[%clk 00:03:32]} {[%emt 00:00:07]}
Ke8 {[%clk 00:02:22]} {[%emt 00:00:04]} 43. Kb5 {[%clk 00:03:31]} {[%emt
00:00:10]} Kd7 {[%clk 00:02:23]} {[%emt 00:00:10]} 44. Kb6 {[%clk 00:03:37]}
{[%emt 00:00:04]} Ke8 {[%clk 00:02:11]} {[%emt 00:00:22]} 45. Kc7 {[%clk
00:03:41]} {[%emt 00:00:06]} Kf8 {[%clk 00:02:17]} {[%emt 00:00:04]} 46. Kxd6
{[%clk 00:03:47]} {[%emt 00:00:04]} Ke8 {[%clk 00:02:26]} {[%emt 00:00:02]} 47.
c5 {[%clk 00:03:51]} {[%emt 00:00:05]} Kd8 {[%clk 00:02:34]} {[%emt 00:00:03]}
48. Be6 {[%clk 00:03:50]} {[%emt 00:00:09]} Ke8 {[%clk 00:02:42]} {[%emt
00:00:03]} 49. c6 {[%clk 00:03:49]} {[%emt 00:00:11]} Kd8 {[%clk 00:02:51]}
{[%emt 00:00:02]} 50. c7+ {[%clk 00:03:54]} {[%emt 00:00:04]} Ke8 {[%clk
00:03:00]} {[%emt 00:00:01]} 1-0